[Event "Late-Titled-Tuesday-Blitz-January-16-2024"]
[Site "Chess.com"]
[Date "2024.01.16"]
[Round "2"]
[White "el_sporco"]
[Black "Harsha_Bharathakoti"]
[Result "0-1"]
[WhiteElo "2412"]
[BlackElo "2941"]
[TimeControl "180+1"]
[EndTime "14:19:06 PST"]
[Termination "Harsha_Bharathakoti won by resignation"]

1. e4 {[%clk 0:03:00.9]} 1... g6 {[%clk 0:02:59.7]} 2. d4 {[%clk 0:02:50.8]}
2... Bg7 {[%clk 0:03:00]} 3. Nc3 {[%clk 0:02:50.3]} 3... d6 {[%clk 0:03:00.6]}
4. Nf3 {[%clk 0:02:45.1]} 4... a6 {[%clk 0:03:00.8]} 5. a4 {[%clk 0:02:31.3]}
5... Nc6 {[%clk 0:02:53.8]} 6. Be2 {[%clk 0:02:30.6]} 6... Bg4 {[%clk
0:02:53.5]} 7. Be3 {[%clk 0:02:30.6]} 7... Nf6 {[%clk 0:02:50.1]} 8. O-O {[%clk
0:02:30]} 8... O-O {[%clk 0:02:49.8]} 9. h3 {[%clk 0:02:27.4]} 9... Bxf3 {[%clk
0:02:49.3]} 10. Bxf3 {[%clk 0:02:28.3]} 10... e5 {[%clk 0:02:49]} 11. d5 {[%clk
0:02:28.5]} 11... Ne7 {[%clk 0:02:48.9]} 12. Be2 {[%clk 0:02:27.1]} 12... Nd7
{[%clk 0:02:43.7]} 13. f3 {[%clk 0:02:26.2]} 13... f5 {[%clk 0:02:43.7]} 14. b4
{[%clk 0:02:22.9]} 14... a5 {[%clk 0:02:43.1]} 15. b5 {[%clk 0:02:19.7]} 15...
b6 {[%clk 0:02:35.5]} 16. Qd2 {[%clk 0:02:18.1]} 16... Rf7 {[%clk 0:02:32]} 17.
Na2 {[%clk 0:02:14.3]} 17... Qf8 {[%clk 0:02:31.1]} 18. c4 {[%clk 0:02:14]}
18... h5 {[%clk 0:02:30.2]} 19. Nc3 {[%clk 0:02:10.8]} 19... Kh7 {[%clk
0:02:30.6]} 20. Kh1 {[%clk 0:02:08]} 20... Bh6 {[%clk 0:02:30.5]} 21. Bxh6
{[%clk 0:01:59.4]} 21... Qxh6 {[%clk 0:02:31.4]} 22. Qxh6+ {[%clk 0:01:59.5]}
22... Kxh6 {[%clk 0:02:31.9]} 23. Bd3 {[%clk 0:01:55]} 23... Nc5 {[%clk
0:02:24.6]} 24. Bc2 {[%clk 0:01:54.5]} 24... h4 {[%clk 0:02:17.1]} 25. exf5
{[%clk 0:01:51.6]} 25... gxf5 {[%clk 0:02:16.7]} 26. Rae1 {[%clk 0:01:50.2]}
26... Ng6 {[%clk 0:02:15.4]} 27. Nd1 {[%clk 0:01:39.7]} 27... Nf4 {[%clk
0:02:11.6]} 28. Ne3 {[%clk 0:01:37.4]} 28... Raf8 {[%clk 0:02:07.1]} 29. Rd1
{[%clk 0:01:27.7]} 29... Nh5 {[%clk 0:02:06.6]} 30. Kh2 {[%clk 0:01:27.6]} 30...
Ng3 {[%clk 0:02:06.5]} 31. Rf2 {[%clk 0:01:26.6]} 31... Kg5 {[%clk 0:02:04.5]}
32. Rfd2 {[%clk 0:01:13.4]} 32... Rg7 {[%clk 0:02:00.6]} 33. Nf1 {[%clk
0:01:10]} 33... Nxf1+ {[%clk 0:01:41.2]} 34. Rxf1 {[%clk 0:01:10.9]} 34... Kf4
{[%clk 0:01:31.4]} 35. Re1 {[%clk 0:01:09.8]} 35... Rg3 {[%clk 0:01:31.3]} 36.
Rde2 {[%clk 0:01:06.7]} 36... Rfg8 {[%clk 0:01:31.7]} 37. Rf2 {[%clk 0:01:04.9]}
37... R8g7 {[%clk 0:01:32.1]} 38. Rfe2 {[%clk 0:01:04.4]} 38... Kg5 {[%clk
0:01:32.5]} 39. Rf2 {[%clk 0:01:04.4]} 39... Kf6 {[%clk 0:01:33]} 40. Rfe2
{[%clk 0:01:04.5]} 40... Kg5 {[%clk 0:01:29.6]} 41. Rf2 {[%clk 0:01:04.7]} 41...
Nd7 {[%clk 0:01:29.4]} 42. Ree2 {[%clk 0:00:38.9]} 42... Kf6 {[%clk 0:01:20.9]}
43. Kh1 {[%clk 0:00:36.8]} 43... Nf8 {[%clk 0:01:19.6]} 44. Kh2 {[%clk
0:00:37.2]} 44... Ng6 {[%clk 0:01:15.2]} 45. Rd2 {[%clk 0:00:37.4]} 45... Nf4
{[%clk 0:01:15.2]} 46. Kh1 {[%clk 0:00:37.1]} 46... Kg5 {[%clk 0:01:12.2]} 47.
Kh2 {[%clk 0:00:36.9]} 47... Rg6 {[%clk 0:01:09.5]} 48. Kh1 {[%clk 0:00:36.8]}
48... Rg8 {[%clk 0:01:07.3]} 49. Kh2 {[%clk 0:00:37]} 49... Re8 {[%clk 0:01:04]}
50. Rd1 {[%clk 0:00:36.7]} 50... Kf6 {[%clk 0:00:58.7]} 51. Rdd2 {[%clk
0:00:26.8]} 51... Ng6 {[%clk 0:00:40.7]} 52. Rd1 {[%clk 0:00:26.8]} 52... Kg5
{[%clk 0:00:40.5]} 53. Rdf1 {[%clk 0:00:24.3]} 53... Re7 {[%clk 0:00:36.6]} 54.
Rd1 {[%clk 0:00:24]} 54... e4 {[%clk 0:00:36.5]} 55. fxe4 {[%clk 0:00:23.8]}
55... fxe4 {[%clk 0:00:37.4]} 56. Rdf1 {[%clk 0:00:24.1]} 56... e3 {[%clk
0:00:37.3]} 57. Rf5+ {[%clk 0:00:23.3]} 57... Kh6 {[%clk 0:00:37.8]} 58. Rf6
{[%clk 0:00:21]} 58... Kg7 {[%clk 0:00:34.1]} 59. Bxg6 {[%clk 0:00:08.2]} 59...
Rxg6 {[%clk 0:00:30.8]} 60. R6f4 {[%clk 0:00:08.9]} 60... e2 {[%clk 0:00:25.3]}
61. Re1 {[%clk 0:00:09.2]} 61... Rf6 {[%clk 0:00:26.1]} 62. Rxf6 {[%clk
0:00:06.8]} 62... Kxf6 {[%clk 0:00:27]} 63. g3 {[%clk 0:00:07.2]} 63... Kf5
{[%clk 0:00:16]} 64. Kg2 {[%clk 0:00:06.7]} 64... Re3 {[%clk 0:00:16.6]} 65.
gxh4 {[%clk 0:00:06.3]} 65... Ke4 {[%clk 0:00:17.3]} 66. Kf2 {[%clk 0:00:06.7]}
66... Kd3 {[%clk 0:00:18]} 67. h5 {[%clk 0:00:07]} 67... Rxh3 {[%clk 0:00:17.7]}
68. h6 {[%clk 0:00:06]} 68... Rxh6 {[%clk 0:00:17.7]} 69. Kf3 {[%clk 0:00:03.5]}
69... Rf6+ {[%clk 0:00:17.6]} 70. Kg2 {[%clk 0:00:03.7]} 70... Kd2 {[%clk
0:00:18.5]} 0-1

[Event "Late-Titled-Tuesday-Blitz-January-16-2024"]
[Site "Chess.com"]
[Date "2024.01.16"]
[Round "2"]
[White "masnyszachistaaa"]
[Black "waltereador"]
[Result "1-0"]
[WhiteElo "2526"]
[BlackElo "2267"]
[TimeControl "180+1"]
[EndTime "14:19:12 PST"]
[Termination "masnyszachistaaa won by resignation"]

1. Nf3 {[%clk 0:03:00.9]} 1... Nf6 {[%clk 0:02:58.8]} 2. b3 {[%clk 0:03:00.3]}
2... g6 {[%clk 0:02:58.8]} 3. Bb2 {[%clk 0:03:00.5]} 3... Bg7 {[%clk 0:02:59.4]}
4. d4 {[%clk 0:03:00.3]} 4... d5 {[%clk 0:02:59.9]} 5. e3 {[%clk 0:03:00.5]}
5... c6 {[%clk 0:02:58.4]} 6. Nbd2 {[%clk 0:03:00.7]} 6... Bg4 {[%clk
0:02:58.5]} 7. Be2 {[%clk 0:02:59.9]} 7... Nbd7 {[%clk 0:02:58.7]} 8. O-O {[%clk
0:02:59.8]} 8... O-O {[%clk 0:02:58.2]} 9. c4 {[%clk 0:03:00]} 9... Re8 {[%clk
0:02:56.7]} 10. Rc1 {[%clk 0:02:59.8]} 10... e6 {[%clk 0:02:54.5]} 11. h3 {[%clk
0:02:56.9]} 11... Bxf3 {[%clk 0:02:54.5]} 12. Bxf3 {[%clk 0:02:57.7]} 12... Rc8
{[%clk 0:02:51.3]} 13. Qe2 {[%clk 0:02:51.9]} 13... e5 {[%clk 0:02:48.8]} 14.
dxe5 {[%clk 0:02:34.9]} 14... Nxe5 {[%clk 0:02:48.1]} 15. Bxe5 {[%clk
0:02:34.8]} 15... Rxe5 {[%clk 0:02:48.3]} 16. cxd5 {[%clk 0:02:35]} 16... Nxd5
{[%clk 0:02:47.9]} 17. Nc4 {[%clk 0:02:32.5]} 17... Re7 {[%clk 0:02:47]} 18.
Rfd1 {[%clk 0:02:31.3]} 18... Rd7 {[%clk 0:02:47.3]} 19. Bxd5 {[%clk 0:01:43.1]}
19... Rxd5 {[%clk 0:02:44]} 20. e4 {[%clk 0:01:41.6]} 20... Rd4 {[%clk
0:02:37.3]} 21. Rxd4 {[%clk 0:01:40]} 21... Bxd4 {[%clk 0:02:33.5]} 22. Rd1
{[%clk 0:01:40.2]} 22... c5 {[%clk 0:02:33.9]} 23. Ne3 {[%clk 0:01:40.4]} 23...
Qa5 {[%clk 0:02:31.3]} 24. Nd5 {[%clk 0:01:37.1]} 24... Re8 {[%clk 0:02:29.5]}
25. b4 {[%clk 0:00:41.2]} 25... Qd8 {[%clk 0:02:07.9]} 26. bxc5 {[%clk
0:00:27.8]} 26... Bxc5 {[%clk 0:02:07.8]} 27. Qf3 {[%clk 0:00:22.8]} 27... Re6
{[%clk 0:02:05.3]} 28. Rc1 {[%clk 0:00:17.8]} 28... b6 {[%clk 0:02:04.8]} 29.
Rd1 {[%clk 0:00:09]} 29... Qg5 {[%clk 0:02:04]} 30. Nc3 {[%clk 0:00:06.8]} 30...
Qe5 {[%clk 0:02:01.3]} 31. Rd5 {[%clk 0:00:02.1]} 31... Qb8 {[%clk 0:01:56.2]}
32. Qd3 {[%clk 0:00:01.9]} 32... Re8 {[%clk 0:01:55.4]} 33. Qd2 {[%clk
0:00:02.4]} 33... Qc8 {[%clk 0:01:53.8]} 34. Rd3 {[%clk 0:00:02.3]} 34... Qe6
{[%clk 0:01:53.5]} 35. Nd5 {[%clk 0:00:02.4]} 35... Kg7 {[%clk 0:01:43]} 36. Nc7
{[%clk 0:00:02]} 36... Qxe4 {[%clk 0:01:42.2]} 37. Nxe8+ {[%clk 0:00:02.4]}
37... Qxe8 {[%clk 0:01:42.3]} 38. Qc3+ {[%clk 0:00:02.8]} 38... Kg8 {[%clk
0:01:42.1]} 39. Qd2 {[%clk 0:00:03.4]} 39... Qe5 {[%clk 0:01:40.7]} 40. Rd8+
{[%clk 0:00:03.4]} 40... Kg7 {[%clk 0:01:41.2]} 41. Rd5 {[%clk 0:00:03.6]} 41...
Qa1+ {[%clk 0:01:40.8]} 42. Kh2 {[%clk 0:00:04.2]} 42... Qf6 {[%clk 0:01:40.6]}
43. Kg1 {[%clk 0:00:03.4]} 43... Qa1+ {[%clk 0:01:38.1]} 44. Kh2 {[%clk
0:00:03.6]} 44... Qf6 {[%clk 0:01:37.3]} 45. g3 {[%clk 0:00:04]} 45... Qxf2+
{[%clk 0:01:34.4]} 46. Qxf2 {[%clk 0:00:03.8]} 46... Bxf2 {[%clk 0:01:35.1]} 47.
Rd7 {[%clk 0:00:04.1]} 47... b5 {[%clk 0:01:35.1]} 48. Kg2 {[%clk 0:00:04.6]}
48... Bb6 {[%clk 0:01:34.9]} 49. Kf3 {[%clk 0:00:04.3]} 49... h5 {[%clk
0:01:35.3]} 50. Rd5 {[%clk 0:00:04.8]} 50... b4 {[%clk 0:01:34.3]} 51. Rb5
{[%clk 0:00:05]} 51... f5 {[%clk 0:01:29.7]} 52. Rxb4 {[%clk 0:00:05]} 52... g5
{[%clk 0:01:29.6]} 53. g4 {[%clk 0:00:04]} 53... hxg4+ {[%clk 0:01:29.4]} 54.
hxg4 {[%clk 0:00:04.3]} 54... fxg4+ {[%clk 0:01:27.9]} 55. Kxg4 {[%clk
0:00:04.2]} 55... Kf6 {[%clk 0:01:27.9]} 56. Rb5 {[%clk 0:00:04.3]} 56... Be3
{[%clk 0:01:26.8]} 57. Rb3 {[%clk 0:00:04.7]} 57... Bb6 {[%clk 0:01:26.8]} 58.
Ra3 {[%clk 0:00:04.5]} 58... Kg6 {[%clk 0:01:24.5]} 59. Rd3 {[%clk 0:00:04.4]}
59... Kf6 {[%clk 0:01:24.8]} 60. Rd6+ {[%clk 0:00:04.5]} 60... Ke5 {[%clk
0:01:25.1]} 61. Rd7 {[%clk 0:00:04]} 61... Ke6 {[%clk 0:01:24.7]} 62. Rd3 {[%clk
0:00:04]} 62... Kf6 {[%clk 0:01:25.1]} 63. Rf3+ {[%clk 0:00:04.3]} 63... Kg6
{[%clk 0:01:25.4]} 64. Rc3 {[%clk 0:00:04.7]} 64... Kf6 {[%clk 0:01:25.7]} 65.
Rc6+ {[%clk 0:00:05]} 65... Ke5 {[%clk 0:01:24.4]} 66. Kxg5 {[%clk 0:00:05.5]}
66... Kd5 {[%clk 0:01:24.9]} 67. Rc2 {[%clk 0:00:05.3]} 67... Bc5 {[%clk
0:01:22.7]} 68. Kf4 {[%clk 0:00:05.4]} 68... a5 {[%clk 0:01:22.7]} 69. Kf3
{[%clk 0:00:05.5]} 69... Kd4 {[%clk 0:01:21.6]} 70. Ke2 {[%clk 0:00:06]} 70...
Bb4 {[%clk 0:01:22.1]} 71. Kd1 {[%clk 0:00:05.7]} 71... Bc3 {[%clk 0:01:22.2]}
72. Kc1 {[%clk 0:00:05.9]} 72... Kd3 {[%clk 0:01:22.6]} 73. Kb1 {[%clk 0:00:06]}
73... Bb4 {[%clk 0:01:20.4]} 74. Rh2 {[%clk 0:00:06.1]} 74... Kc4 {[%clk
0:01:20.7]} 75. Rh3 {[%clk 0:00:06.5]} 75... Kb5 {[%clk 0:01:20.9]} 76. Kc2
{[%clk 0:00:06.9]} 76... Ka4 {[%clk 0:01:21.2]} 77. Rg3 {[%clk 0:00:06.6]} 77...
Kb5 {[%clk 0:01:21.4]} 78. Rg4 {[%clk 0:00:06.7]} 78... Ka4 {[%clk 0:01:21.2]}
79. Kb2 {[%clk 0:00:07.2]} 79... Kb5 {[%clk 0:01:21.7]} 80. Rg5+ {[%clk
0:00:07.3]} 80... Bc5 {[%clk 0:01:22]} 81. Rh5 {[%clk 0:00:07.1]} 81... Kc4
{[%clk 0:01:21.1]} 82. Kc2 {[%clk 0:00:07.4]} 82... Bb4 {[%clk 0:01:21.3]} 83.
Rh4+ {[%clk 0:00:07.7]} 83... Kb5 {[%clk 0:01:21.6]} 84. Kb3 {[%clk 0:00:08.2]}
84... Be1 {[%clk 0:01:20.2]} 85. Rh5+ {[%clk 0:00:08.1]} 85... Kb6 {[%clk
0:01:20.3]} 86. Ka4 {[%clk 0:00:08.6]} 86... Bb4 {[%clk 0:01:19.7]} 87. Rh6+
{[%clk 0:00:08.9]} 87... Kc5 {[%clk 0:01:19.4]} 88. Rg6 {[%clk 0:00:09.1]} 88...
Bd2 {[%clk 0:01:17.1]} 89. Rg3 {[%clk 0:00:09]} 89... Be1 {[%clk 0:01:16.7]} 90.
Rf3 {[%clk 0:00:09.2]} 90... Bd2 {[%clk 0:01:16.5]} 91. Rd3 {[%clk 0:00:09.3]}
91... Be1 {[%clk 0:01:16.6]} 92. Rd1 {[%clk 0:00:09.4]} 92... Bc3 {[%clk
0:01:16.6]} 93. Kb3 {[%clk 0:00:09.2]} 93... Bb4 {[%clk 0:01:16.7]} 94. a3
{[%clk 0:00:08.8]} 94... a4+ {[%clk 0:01:14.3]} 95. Kxa4 {[%clk 0:00:08.9]}
95... Bc3 {[%clk 0:01:13.6]} 96. Rc1 {[%clk 0:00:09.3]} 96... Kd4 {[%clk
0:01:14]} 97. Rxc3 {[%clk 0:00:09.2]} 97... Kxc3 {[%clk 0:01:14.6]} 98. Kb5
{[%clk 0:00:09.9]} 98... Kd4 {[%clk 0:01:14.6]} 99. a4 {[%clk 0:00:10.8]} 99...
Kd5 {[%clk 0:01:15.5]} 100. a5 {[%clk 0:00:11]} 100... Kd6 {[%clk 0:01:16.4]}
101. Kb6 {[%clk 0:00:11.6]} 101... Kd7 {[%clk 0:01:16.5]} 102. Kb7 {[%clk
0:00:12.2]} 102... Kd6 {[%clk 0:01:16.8]} 103. a6 {[%clk 0:00:13.1]} 103... Kc5
{[%clk 0:01:17.7]} 104. a7 {[%clk 0:00:14]} 104... Kb5 {[%clk 0:01:18.6]} 105.
a8=Q {[%clk 0:00:14.9]} 105... Kc4 {[%clk 0:01:19.2]} 106. Qa5 {[%clk
0:00:15.1]} 106... Kd4 {[%clk 0:01:20.1]} 107. Qf5 {[%clk 0:00:15.1]} 1-0

[Event "Late-Titled-Tuesday-Blitz-January-16-2024"]
[Site "Chess.com"]
[Date "2024.01.16"]
[Round "2"]
[White "YurasovMat-2012"]
[Black "wild3000"]
[Result "0-1"]
[WhiteElo "2613"]
[BlackElo "2374"]
[TimeControl "180+1"]
[EndTime "14:19:15 PST"]
[Termination "wild3000 won on time"]

1. e4 {[%clk 0:03:00.6]} 1... e6 {[%clk 0:02:40.5]} 2. d3 {[%clk 0:02:59.1]}
2... c5 {[%clk 0:02:40.2]} 3. Nd2 {[%clk 0:02:59.2]} 3... Nc6 {[%clk 0:02:40.7]}
4. Ngf3 {[%clk 0:02:57.9]} 4... d5 {[%clk 0:02:40.8]} 5. g3 {[%clk 0:02:57.4]}
5... Nf6 {[%clk 0:02:40.4]} 6. Bg2 {[%clk 0:02:57.2]} 6... Be7 {[%clk
0:02:36.6]} 7. O-O {[%clk 0:02:57.6]} 7... O-O {[%clk 0:02:36.8]} 8. Re1 {[%clk
0:02:58.2]} 8... a5 {[%clk 0:02:34.6]} 9. e5 {[%clk 0:02:56.1]} 9... Nd7 {[%clk
0:02:34.6]} 10. Nf1 {[%clk 0:02:56.4]} 10... a4 {[%clk 0:02:33.7]} 11. a3 {[%clk
0:02:56.1]} 11... b5 {[%clk 0:02:33.4]} 12. h4 {[%clk 0:02:55.9]} 12... Qc7
{[%clk 0:02:31.5]} 13. Bf4 {[%clk 0:02:55]} 13... b4 {[%clk 0:02:31.2]} 14. h5
{[%clk 0:02:51.3]} 14... bxa3 {[%clk 0:02:26.8]} 15. bxa3 {[%clk 0:02:50.7]}
15... Rb8 {[%clk 0:02:23.2]} 16. Qd2 {[%clk 0:02:49.8]} 16... Nd4 {[%clk
0:02:20.1]} 17. Nxd4 {[%clk 0:02:47.6]} 17... cxd4 {[%clk 0:02:20.1]} 18. h6
{[%clk 0:02:45.9]} 18... g6 {[%clk 0:02:19.7]} 19. Nh2 {[%clk 0:02:45]} 19...
Qc3 {[%clk 0:02:14]} 20. Qc1 {[%clk 0:02:43.4]} 20... Rb2 {[%clk 0:02:05.9]} 21.
Re2 {[%clk 0:02:34.5]} 21... Ba6 {[%clk 0:01:48.4]} 22. Bf1 {[%clk 0:02:31.7]}
22... Rc8 {[%clk 0:01:44.8]} 23. Bg5 {[%clk 0:02:28.6]} 23... Bf8 {[%clk
0:01:32.1]} 24. Ng4 {[%clk 0:02:26.9]} 24... Rxc2 {[%clk 0:01:28.1]} 25. Rxc2
{[%clk 0:02:27.1]} 25... Qxc2 {[%clk 0:01:28.5]} 26. Qf4 {[%clk 0:02:27.8]}
26... Bxd3 {[%clk 0:01:19.6]} 27. Bh3 {[%clk 0:02:12.8]} 27... Bf5 {[%clk
0:01:08.8]} 28. Bg2 {[%clk 0:01:24.8]} 28... Bxg4 {[%clk 0:00:58.5]} 29. Qxg4
{[%clk 0:01:24.5]} 29... Qf5 {[%clk 0:00:58.8]} 30. Qh4 {[%clk 0:01:20.5]} 30...
Qxe5 {[%clk 0:00:51.4]} 31. Bd2 {[%clk 0:01:10.6]} 31... Qf6 {[%clk 0:00:33]}
32. Bg5 {[%clk 0:01:04.5]} 32... Qe5 {[%clk 0:00:33.2]} 33. Rd1 {[%clk
0:00:59.5]} 33... Bxa3 {[%clk 0:00:28.2]} 34. Rxd4 {[%clk 0:00:59.6]} 34... Ra8
{[%clk 0:00:21.1]} 35. Rg4 {[%clk 0:00:47.3]} 35... Qe1+ {[%clk 0:00:19.5]} 36.
Kh2 {[%clk 0:00:46.1]} 36... Qxf2 {[%clk 0:00:19.6]} 37. Rxa4 {[%clk 0:00:43.8]}
37... Rxa4 {[%clk 0:00:15.6]} 38. Qxa4 {[%clk 0:00:44.7]} 38... Bd6 {[%clk
0:00:13.8]} 39. Bh4 {[%clk 0:00:42.3]} 39... g5 {[%clk 0:00:09.7]} 40. Qg4
{[%clk 0:00:31.8]} 40... Be7 {[%clk 0:00:06.6]} 41. Bxg5 {[%clk 0:00:21.7]}
41... Ne5 {[%clk 0:00:05.8]} 42. Qh5 {[%clk 0:00:21.1]} 42... Bxg5 {[%clk
0:00:03.9]} 43. Qxg5+ {[%clk 0:00:20.4]} 43... Ng6 {[%clk 0:00:04.8]} 44. Qd8+
{[%clk 0:00:17]} 44... Nf8 {[%clk 0:00:04.8]} 45. Qg5+ {[%clk 0:00:16.6]} 45...
Ng6 {[%clk 0:00:05]} 46. Qd8+ {[%clk 0:00:15.2]} 46... Nf8 {[%clk 0:00:05.2]}
47. Qh4 {[%clk 0:00:12.6]} 47... Qf5 {[%clk 0:00:04]} 48. Bh3 {[%clk 0:00:11]}
48... Qg6 {[%clk 0:00:04.1]} 49. Bf1 {[%clk 0:00:10]} 49... d4 {[%clk
0:00:03.5]} 50. Qf4 {[%clk 0:00:02.9]} 50... f6 {[%clk 0:00:02.3]} 51. g4 {[%clk
0:00:00.8]} 51... e5 {[%clk 0:00:02.2]} 52. Qd2 {[%clk 0:00:01.5]} 52... Qxg4
{[%clk 0:00:01.4]} 53. Bc4+ {[%clk 0:00:02.4]} 53... Kh8 {[%clk 0:00:01.5]} 54.
Qf2 {[%clk 0:00:02.9]} 54... Qf4+ {[%clk 0:00:01.6]} 55. Qxf4 {[%clk 0:00:02.7]}
55... exf4 {[%clk 0:00:02.5]} 56. Kg2 {[%clk 0:00:02.8]} 56... Ng6 {[%clk
0:00:02.8]} 0-1

[Event "Late-Titled-Tuesday-Blitz-January-16-2024"]
[Site "Chess.com"]
[Date "2024.01.16"]
[Round "2"]
[White "Hui_Li_Macau"]
[Black "Statham_01"]
[Result "0-1"]
[WhiteElo "2315"]
[BlackElo "2547"]
[TimeControl "180+1"]
[EndTime "14:19:17 PST"]
[Termination "Statham_01 won by checkmate"]

1. e4 {[%clk 0:03:00.9]} 1... e6 {[%clk 0:03:00.2]} 2. d4 {[%clk 0:03:00.5]}
2... d5 {[%clk 0:03:00.8]} 3. Nd2 {[%clk 0:02:58]} 3... Nf6 {[%clk 0:03:00.3]}
4. e5 {[%clk 0:02:58.2]} 4... Nfd7 {[%clk 0:03:01]} 5. Bd3 {[%clk 0:02:59.1]}
5... c5 {[%clk 0:03:01.4]} 6. c3 {[%clk 0:02:59.8]} 6... Nc6 {[%clk 0:03:02.1]}
7. Ne2 {[%clk 0:03:00.2]} 7... cxd4 {[%clk 0:03:02.4]} 8. cxd4 {[%clk
0:03:01.1]} 8... f6 {[%clk 0:03:03]} 9. exf6 {[%clk 0:03:02]} 9... Nxf6 {[%clk
0:03:03.5]} 10. O-O {[%clk 0:03:02.6]} 10... Bd6 {[%clk 0:03:04.2]} 11. Nf3
{[%clk 0:03:03.5]} 11... O-O {[%clk 0:03:04.5]} 12. Bf4 {[%clk 0:03:03.3]} 12...
Bxf4 {[%clk 0:03:04]} 13. Nxf4 {[%clk 0:03:04.2]} 13... Ng4 {[%clk 0:03:04.4]}
14. g3 {[%clk 0:02:53.9]} 14... e5 {[%clk 0:02:58.6]} 15. dxe5 {[%clk 0:02:52]}
15... Ncxe5 {[%clk 0:02:58.3]} 16. Nxe5 {[%clk 0:02:51.4]} 16... Nxe5 {[%clk
0:02:58.7]} 17. Bxh7+ {[%clk 0:02:24.7]} 17... Kxh7 {[%clk 0:02:41.5]} 18. Qh5+
{[%clk 0:02:24.7]} 18... Kg8 {[%clk 0:02:42.2]} 19. Qxe5 {[%clk 0:02:24.6]}
19... Rf5 {[%clk 0:02:42.9]} 20. Qd4 {[%clk 0:02:17.1]} 20... Qb6 {[%clk
0:02:18.7]} 21. Rad1 {[%clk 0:02:06.3]} 21... Qxd4 {[%clk 0:01:28.8]} 22. Rxd4
{[%clk 0:02:07.2]} 22... Kf7 {[%clk 0:01:27]} 23. Re1 {[%clk 0:01:55.2]} 23...
Bd7 {[%clk 0:01:17.2]} 24. Rxd5 {[%clk 0:01:50.4]} 24... Rxd5 {[%clk 0:01:16.2]}
25. Nxd5 {[%clk 0:01:51.3]} 25... Bc6 {[%clk 0:01:16.9]} 26. Nc3 {[%clk
0:01:47]} 26... Rd8 {[%clk 0:01:16.6]} 27. Rd1 {[%clk 0:01:36.5]} 27... Re8
{[%clk 0:01:15.8]} 28. f4 {[%clk 0:01:32]} 28... Re3 {[%clk 0:01:14.7]} 29. a3
{[%clk 0:01:15.7]} 29... Rf3 {[%clk 0:01:10.8]} 30. Rd2 {[%clk 0:01:01]} 30...
a5 {[%clk 0:01:02]} 31. Nd1 {[%clk 0:00:58]} 31... Ke6 {[%clk 0:00:36.2]} 32.
Nf2 {[%clk 0:00:54.5]} 32... Re3 {[%clk 0:00:34]} 33. Nd3 {[%clk 0:00:49.7]}
33... Kf5 {[%clk 0:00:17.2]} 34. Ne5 {[%clk 0:00:49.4]} 34... Be4 {[%clk
0:00:07.3]} 35. Kf2 {[%clk 0:00:46.8]} 35... Rb3 {[%clk 0:00:06.2]} 36. Nd7
{[%clk 0:00:32.5]} 36... g5 {[%clk 0:00:05.1]} 37. Nc5 {[%clk 0:00:31]} 37...
Rf3+ {[%clk 0:00:04.8]} 38. Ke2 {[%clk 0:00:29.5]} 38... Bc6 {[%clk 0:00:05.7]}
39. fxg5 {[%clk 0:00:20.3]} 39... Kxg5 {[%clk 0:00:06.6]} 40. b4 {[%clk
0:00:19.7]} 40... axb4 {[%clk 0:00:06.4]} 41. axb4 {[%clk 0:00:20.6]} 41... Ra3
{[%clk 0:00:06.2]} 42. Kf2 {[%clk 0:00:17.7]} 42... Kg4 {[%clk 0:00:06.1]} 43.
Rd4+ {[%clk 0:00:17]} 43... Kg5 {[%clk 0:00:06.2]} 44. h4+ {[%clk 0:00:16.8]}
44... Kf5 {[%clk 0:00:06.5]} 45. Rf4+ {[%clk 0:00:16.8]} 45... Ke5 {[%clk
0:00:05.7]} 46. Rf8 {[%clk 0:00:12.6]} 46... Ra2+ {[%clk 0:00:06.2]} 47. Ke3
{[%clk 0:00:12.7]} 47... Rg2 {[%clk 0:00:05.4]} 48. Nd3+ {[%clk 0:00:10.4]}
48... Kd6 {[%clk 0:00:04.5]} 49. Rg8 {[%clk 0:00:09]} 49... Ke7 {[%clk
0:00:03.1]} 50. Nf4 {[%clk 0:00:08.8]} 50... Rb2 {[%clk 0:00:03.6]} 51. Rg7+
{[%clk 0:00:09]} 51... Kf6 {[%clk 0:00:03.5]} 52. Rg6+ {[%clk 0:00:07.5]} 52...
Kf7 {[%clk 0:00:04.1]} 53. Rg5 {[%clk 0:00:04.2]} 53... Rxb4 {[%clk 0:00:04.2]}
54. h5 {[%clk 0:00:04.7]} 54... Rb3+ {[%clk 0:00:03.7]} 55. Kd4 {[%clk
0:00:04.8]} 55... Rb4+ {[%clk 0:00:04.2]} 56. Ke5 {[%clk 0:00:05.1]} 56... Re4+
{[%clk 0:00:04.7]} 57. Kf5 {[%clk 0:00:04.8]} 57... Re3 {[%clk 0:00:05]} 58. Kg4
{[%clk 0:00:04.8]} 58... Bd7+ {[%clk 0:00:05]} 59. Kh4 {[%clk 0:00:04]} 59...
Re1 {[%clk 0:00:05.7]} 60. g4 {[%clk 0:00:04.4]} 60... Rg1 {[%clk 0:00:05.8]}
61. Nh3 {[%clk 0:00:04.4]} 61... Rg2 {[%clk 0:00:05]} 62. Re5 {[%clk 0:00:04.1]}
62... Rxg4# {[%clk 0:00:04.3]} 0-1